{"text_format":"2","workbook":"xlsx","n_sheets":6,"sheets":["2025","2024","2023","Lagoversikt_dugnadsliste","Antall dugnader sjekk","Ark2"],"not_rendered":{"charts":0,"images":0,"macros":0,"external_links":0,"defined_names":2,"comments":0,"pivot_tables":0},"unopened":[],"bounds":{"document_bytes":16777216,"sheet_cells":100000,"run_cost":"one","rows_first":2000,"rows_last":500,"rows_between":2000,"halvings":0,"cell_chars":16384,"cell_head_chars":4096},"cells_cut":0,"cells_raw":0,"read":"whole","date_system":"1900"}

{"sheet":"2025","index":0,"n_rows":48,"n_cols":8,"rows_kept":48,"cut":false,"hidden":false,"merged":[]}
["DUGNAD MIL 2024","MIL",2025]
["Dato","Spesifisert klokke/dag","Type","Ansvarlig","Hvem - dugnadsarbeidere","Beskrivelse","Kommentar"]
["Februar",null,"RT-Cup","Sportslig Utvalg Fotball","Fotball G9/J9","Danner komite ","Komite bør være etablert og ha som mål å ha første planleggingsmøte innen utgangen av Februar"]
["Februar",null,"Strandamila","Beate Langeland","Strandamilkomiteen",null,"Komite bør være etablert og ha som mål å ha første planleggingsmøte innen utgangen av Februar"]
["Februar",null,"Fotballskole","Sportslig Utvalg Fotball",null,null,"Danner komite"]
["April",null,"Anleggsdugnad - ute","Daglig leder/Steinar Hjorteland","Alle utendørs (fotball)","Utendørs anlegg","2 voksne personer fra hvert lag som stiller på dugnaden"]
["April",null,"Anleggsdugnad - inne","Daglig leder/Tau Campus","Alle innendørs (håndball + allidrett)","Tau Aktivitetshus/ I samarbeid med Tau Campus","Tid kan variere, men MIL bør årlig rydde og sjekke lager etc."]
["Mai","30/04-01/05","Strandamila","Midhat Syed","Håndball (Alle)","Arbeidsoppgaver både 30. april og 1. mai (rygg, rydd, kiosk, stadion)","Eget skriv med detaljer"]
["Mai",null,"Strandamila","Strandamilkomiteen","Allidrett (Alle)","Kakebaking","Antall kommuniseres via kommiteen"]
["Mai",null,"Strandamila","Karina Ur","Fotball (Alle)","Drikkestasjoner/Løypevakter","Eget skriv med detaljer"]
["Mai",null,"Strandamila","Strandamilkomiteen","Fotball Damelag","Drikkestasjoner/Løypevakter","Eget skriv med detaljer"]
["Mai",null,"Strandamila","Strandamilkomiteen","Fotball B-lag herrer","Drikkestasjoner/Løypevakter","Eget skriv med detaljer"]
["Mai",null,"Strandamila","Strandamilkomiteen","Fotball G7/J7","Drikkestasjoner/Løypevakter","Eget skriv med detaljer"]
["Mai",null,"Strandamila","Strandamilkomiteen","Fotball G10","Drikkestasjoner/Løypevakter","Eget skriv med detaljer"]
["Mai",null,"Strandamila","Strandamilkomiteen","Fotball J15/J16","Drikkestasjoner/Løypevakter","Eget skriv med detaljer"]
["Juni","Uke 26","Fotballskole","Sportslig Utvalg Fotball","Sportslig Utvalg Fotball","Sportslig utvalg Rekrutterer instruktører","Instruktører planlegger og utfører fotballskole"]
["Juli",null,"Danacup","Sportslig Utvalg Fotball (ungdomsledere)","Det eldste laget som deltar danner en komité","Samkjører påmelding og event. ","Eller annen alternativ cup"]
["August ",null,"Lyngdalcup","Sportslig utvalg fotball (barneledere)","Det eldste laget som deltar danner en komité","Samkjører påmelding og event for neste år. ","Eller annen alternativ cup"]
["August",null,"RT-Cup","RT- cup komite","Fotball A-lag herrer","Sekretariat, rigging dagen før, premieutdeling"]
["August",null,"RT-Cup","RT- cup komite","Fotball Old Boys","parkeringsvakter, aktiviteter (fotballtarget ect.)"]
["August",null,"RT-Cup","Dommeransvarlig","Fotball G14/J14","Dommere"]
["August",null,"RT-Cup","RT- cup komite","Fotball G12/J12","Kiosk, 1 foresatt + 2 barn (x 3 grupper á 2 timer)"]
["August",null,"RT-Cup","RT- cup komite","Fotball alle lag 6-11 år","2 lapperører (5 liter pr. røre), valgfri langpannekake"]
["August ",null,"Aktivitetsserie","Midhat Syed","Barnehåndball avdeling ","Rigging, rydding, kiosk salg og dommere "]
["Oktober",null,"TV-aksjonen","Daglig leder","Fotball G8/J8","11 bøssebærer og 1 rodeleder"]
["November",null,"Ryfylkekort/Salgsdugnad","Daglig leder","Alle ","Ett kort per medlem/salgsdugnad","Daglig leder administrerer og distribuerer til hver idrett via sportslig leder"]
["Høst",null,"SMIL i Ryfylke/Yrkesmesse","Sportslig utvalg fotball (ungdomsleder)","Fotball G17","Annethvert år"]
["Høst",null,"SMIL i Ryfylke/Yrkesmesse","Sportslig utvalg fotball (ungdomsleder)",null,"10 voksne og 5 ungdommer"]
["Høst",null,"SMIL i Ryfylke/Yrkesmesse","Sportslig utvalg fotball (ungdomsleder)",null,"Rigging, parkeringsvakter, rydding"]
[]
[]
[]
[]
[]
["DUGNAD MIL (Kamparrangementer)"]
["Dato","Spesifisert ","Type","Ansvarlig","Hvem - dugnadsarbeidere","Hvem - dugnadsarbeidere2","Beskrivelse","Kommentar"]
[2025,null,"Kiosk A-lagskamp","Lagleder J16","Fotball J13/J14/J15","Fotball ","Kiosksalg, koke kaffe"]
[2025,"2025-04-10","Kiosk A-lagskamp",null,"Fotball G16/G17","Fotball ","Kake/lapperøre etter kioskgjengens behov"]
[2025,"2025-05-05","Kiosk A-lagskamp",null,"Fotball J11","Fotball ","Kake/lapperøre etter kioskgjengens behov"]
[2025,"2025-05-15","Kiosk A-lagskamp",null,"Fotball G14","Fotball ","Kake/lapperøre etter kioskgjengens behov"]
[2025,"2025-05-23","Kiosk A-lagskamp",null,"Fotball J10","Fotball ","Kake/lapperøre etter kioskgjengens behov"]
[2025,"2025-06-13","Kiosk A-lagskamp",null,"Fotball G13","Fotball ","Kake/lapperøre etter kioskgjengens behov"]
[2025,"2025-06-26","Kiosk A-lagskamp",null,"Fotball J8/J9","Fotball ","Kake/lapperøre etter kioskgjengens behov"]
[2025,"2025-08-15","Kiosk A-lagskamp",null,"Fotball G12","Fotball ","Kake/lapperøre etter kioskgjengens behov"]
[2025,"2025-09-05","Kiosk A-lagskamp",null,"Fotball J14/15","Fotball ","Kake/lapperøre etter kioskgjengens behov"]
[2025,"2025-09-19","Kiosk A-lagskamp",null,"Fotball G11","Fotball ","Kake/lapperøre etter kioskgjengens behov"]
[2025,"2025-10-16","Kiosk A-lagskamp",null,"Fotball G10","Fotball ","Kake/lapperøre etter kioskgjengens behov"]
[2025,"2025-10-31","Kiosk A-lagskamp",null,"Fotball G9","Fotball ","Kake/lapperøre etter kioskgjengens behov"]

{"sheet":"2024","index":1,"n_rows":60,"n_cols":7,"rows_kept":60,"cut":false,"hidden":false,"merged":[]}
["DUGNAD MIL 2024"]
["Dato","Spesifisert klokke/dag","Type","Ansvarlig","Hvem - dugnadsarbeidere","Beskrivelse","Kommentar"]
["April",null,"Anleggsdugnad - ute","Daglig leder/Steinar Hjorteland","Alle utendørs (fotball + friidrett)","Utendørs anlegg","2 voksne personer fra hvert lag som stiller på dugnaden"]
["April",null,"Anleggsdugnad - inne","Daglig leder/Tau Campus","Alle innendørs (håndball + allidrett)","Tau Aktivitetshus/ I samarbeid med Tau Campus","Tid kan variere, men MIL bør årlig rydde og sjekke lager etc."]
["2023-03-31",null,"Strandamila","Beate Langeland","Strandamilkomiteen","Komite sikrer planlegging og gjennomføring","Komite bør være etablert og ha som mål å ha første planleggingsmøte innen utgangen av mars"]
["1.mai",null,"Strandamila","Karina Ur Holgersen / Beate Langeland","Håndball (Alle)","Arbeidsoppgaver både 30. april og 1. mai (rygg, rydd, kiosk, stadion)","Eget skriv med detaljer"]
["1.mai",null,"Strandamila","Strandamilkomiteen","Allidrett (Alle)","Kakebaking","Antall kommuniseres via kommiteen"]
["1.mai",null,"Strandamila","Strandamilkomiteen","Friidrett (Alle)","Barneløparrangører","Eget skriv med detaljer"]
["1.mai",null,"Strandamila","Strandamilkomiteen","Fotball (Alle)","Drikkestasjoner/Løypevakter","Eget skriv med detaljer"]
["1.mai",null,"Strandamila","Strandamilkomiteen","Fotball SMIL Damelag","Drikkestasjoner/Løypevakter","Eget skriv med detaljer"]
["1.mai",null,"Strandamila","Strandamilkomiteen","Fotball B-lag herrer","Drikkestasjoner/Løypevakter","Eget skriv med detaljer"]
["1.mai",null,"Strandamila","Strandamilkomiteen","Fotball G8/J8","Drikkestasjoner/Løypevakter","Eget skriv med detaljer"]
["1.mai",null,"Strandamila","Strandamilkomiteen","Fotball G9/J9","Drikkestasjoner/Løypevakter","Eget skriv med detaljer"]
["1.mai",null,"Strandamila","Strandamilkomiteen","Fotball J15/J16","Drikkestasjoner/Løypevakter","Eget skriv med detaljer"]
["31.mars",null,"17.mai","Fjorårets komite",null,"17. mai komité - 13 stk. fordelt på alle lag","Mål å ha første planleggingsmøte innen utgangen av mars/handover fjorårets komite"]
["30.april",null,"17.mai","17.maikomiteen","Fotball G10/G11/J10/J11","Komiteen bør ha god oversikt over planlegging og kontroll på gjenværende oppgaver","Eget skriv med gudieline og sjekklister fra tidligere 17.mai arrangement"]
["16.mai","16:30 til ferdig","17.mai","17.maikomiteen","Fotball A-lag herrer","Rigging, stoler, bord og andre store ting som skal på plass"]
["16.mai","16:30 til ferdig","17.mai","17.maikomiteen","Fotball Old Boys","Rigge partytelt"]
["2023-05-17","Etter arrangementet","17.mai","17.maikomiteen","Fotball B-lag herrer","Rydding, være med å rydde bord, stoler og annet utstyr"]
["2023-05-17","12:00-14:00 og 14:00-15:30","17.mai","17.maikomiteen","Fotball G17","Pølser og pizza"]
["2023-05-17","12:00-14:00 og 14:00-15:30","17.mai","17.maikomiteen","Fotball J15/J16","Selge is, brus og kaker"]
["2023-05-17","12:00-14:00 og 14:00-16:00","17.mai","17.maikomiteen","Fotball G12/J12","Glutenfritt bord og kjøkken"]
["2023-05-17","12:00-13:30 og 13:30-15:00","17.mai","17.maikomiteen","Fotball G13/J13","Ballonger 16. og 17. mai"]
["20. mai",null,"Loddsalg","Styret","Alle","1 loddbok per medlem"]
["Juni",null,"RT-Cup","Sportslig Utvalg Fotball","Fotball A-lag herrer","Sekretariat, rigging dagen før, premieutdeling"]
["Juni",null,"RT-Cup","Sportslig Utvalg Fotball","Fotball Old Boys","Telt med grilling og salg"]
["Juni",null,"RT-Cup","Sportslig Utvalg Fotball","Fotball G12/J12","Kiosk, 1 foresatt + 2 barn (x 3 grupper á 2 timer)"]
["Juni",null,"RT-Cup","Sportslig Utvalg Fotball","Fotball G14/J14","Dommere"]
["Juni",null,"RT-Cup","Sportslig Utvalg Fotball","Fotball alle lag 6-11 år","2 lapperører (5 liter pr. røre), valgfri langpannekake"]
["26.-29. juni",null,"Fotballskole","Sportslig Utvalg Fotball","Sportslig Utvalg Fotball"]
["Sommer",null,"Kongeparken cup (Håndball)","Sportslig Utvalg Håndball","Sportslig Utvalg Håndball","Samkjører påmelding og event. overnatting, busstransport","Eller annen alternativ cup"]
["Sommer",null,"Danacup","Sportslig Utvalg Fotball (ungdomsledere)"]
["Sommer",null,"Lyngdalcup","Sportslig Utvalg Fotball (Barneledere)","Det eldste laget som deltar danner en komité"]
["Oktober",null,"TV-aksjonen","Daglig leder","Fotball G8/J8","11 bøssebærer og 1 rodeleder"]
["November",null,"Ryfylkekort/Salgsdugnad","Styret","Daglig leder","Ett kort per medlem/salgsdugnad","Daglig leder administrerer og distribuerer til hver idrett via sportslig leder"]
["Høst",null,"SMIL i Ryfylke/Yrkesmesse","Sportslig utvalg fotball (ungdomsleder)","Fotball G17","Annethvert år"]
["Høst",null,"SMIL i Ryfylke/Yrkesmesse","Sportslig utvalg fotball (ungdomsleder)",null,"10 voksne og 5 ungdommer"]
["Høst",null,"SMIL i Ryfylke/Yrkesmesse","Sportslig utvalg fotball (ungdomsleder)",null,"Rigging, parkeringsvakter, rydding"]
[]
[]
[]
[]
[]
["DUGNAD MIL (Kamparrangementer)"]
["Dato","Spesifisert ","Type","Ansvarlig","Hvem - dugnadsarbeidere","Beskrivelse","Kommentar"]
[2024,null,"Kiosk A-lagskamp","Lagleder J16","Fotball J15/J16","Kiosksalg, koke kaffe"]
[2024,null,"Kiosk A-lagskamp",null,"Fotball G7/J7","Kake/lapperøre etter kioskgjengens behov"]
[2024,null,"Kiosk A-lagskamp",null,"Fotball G8/J8","Kake/lapperøre etter kioskgjengens behov"]
[2024,null,"Kiosk A-lagskamp",null,"Fotball G9/J9","Kake/lapperøre etter kioskgjengens behov"]
[2024,null,"Kiosk A-lagskamp",null,"Fotball G10/G11/J10/J11","Kake/lapperøre etter kioskgjengens behov"]
[2024,null,"Kiosk A-lagskamp",null,"Fotball G12/J12","Kake/lapperøre etter kioskgjengens behov"]
[2024,null,"Kiosk A-lagskamp",null,"Fotball G13/J13","Kake/lapperøre etter kioskgjengens behov"]
[2024,null,"Kiosk A-lagskamp",null,"Fotball J15/J16","Kake/lapperøre etter kioskgjengens behov"]
[2024,null,"Kiosk A-lagskamp",null,"Fotball G17","Kake/lapperøre etter kioskgjengens behov"]
[2024,null,"Kiosk A-lagskamp",null,"Fotball J17","Kake/lapperøre etter kioskgjengens behov"]
[2024,null,"Kiosk A-lagskamp",null,"Fotball G7/J7","Kake/lapperøre etter kioskgjengens behov"]
[2024,null,"Kiosk A-lagskamp",null,"Fotball G8/J8","Kake/lapperøre etter kioskgjengens behov"]
[2024,null,"Kiosk A-lagskamp",null,"Fotball G9/J9","Kake/lapperøre etter kioskgjengens behov"]
[2024,null,"Kiosk A-lagskamp",null,"Fotball G10/G11/J10/J11","Kake/lapperøre etter kioskgjengens behov"]
[2024,null,"Kiosk/turnering håndball","Sportslig Utvalg Håndball","Håndball (Alle)","Rigg, rydd, kiosk, sekreteriat","2-4 turneringshelger i året hvor MIL er arrangør"]

{"sheet":"2023","index":2,"n_rows":81,"n_cols":5,"rows_kept":81,"cut":false,"hidden":false,"merged":[[65,2,65,3]]}
[null,null,"DUGNAD MIL 2023"]
[]
["Dato","Type","Hvem","Kommentar","Ansvar"]
["April","Anleggsdugnad","Alle i utendørsaktiviteter","2 voksne personer fra hvert lag som stiller på dugnaden","Daglig leder/Steinar Hjorteland"]
["2023-05-01","Strandamila","Håndball (Alle)","Arbeidsoppgaver både 30. april og 1. mai - Se eget skriv","Karina Ur Holgersen / Beate Langeland"]
[null,"(drikkestasjoner)","Allidrett (Alle)"]
[null,null,"Friidrett (Alle)"]
[null,null,"Fotball"]
[null,null,"SMIL Damelag"]
[null,null,"MIL B-lag herrer"]
[null,null,"Gutter 8"]
[null,null,"Gutter 9"]
[null,null,"Jenter 15/16"]
[null,"2023-05-17","G10/G11/J10/J11","17. mai komité - 13 stk. fordelt på alle lag"]
["Uke 18/19"]
["16.mai","16:30 til ferdig","A-lag herrer","Rigging, stoler, bord og andre store ting som skal på plass"]
["16.mai","16:30 til ferdig","Old Boys","Rigge partytelt"]
["2023-05-17","Etter arrangementet er slutt","B-lag herrer","Rydding, være med å rydde bord, stoler og annet utstyr"]
["2023-05-17","12:00-14:00 og 14:00-15:30","Gutter 17","Pølser og pizza"]
["2023-05-17","12:00-14:00 og 14:00-15:30","Jenter 15/16","Selge is, brus og kaker"]
["2023-05-17","12:00-14:00 og 14:00-16:00","G12/J12","Glutenfritt bord og kjøkken"]
["2023-05-17","12:00-13:30 og 13:30-15:00","G13/J13","Ballonger 16. og 17. mai"]
["20. mai","Loddsalg","Alle","1 loddbok per medlem","Styret"]
["Juni","RT-Cup","A-lag - Fotball","Sekretariat, rigging dagen før, premieutdeling"]
[null,null,"Old Boys - Fotball","Telt med grilling og salg"]
[null,null,"J/G 12 - Fotball","Kiosk, 1 foresatt + 2 barn (x 3 grupper á 2 timer)"]
[null,null,"J/G 13/14 - Fotball","Dommere"]
[null,null,"Alle lag 6-11 år - Fotball","2 lapperører (5 liter pr. røre), valgfri langpannekake"]
["26.-29. juni","Fotballskole",null,null,"Arild Eie"]
[]
[]
[]
["Danacup",null,null,null,"Sportslig utvalg fotball (ungdomsleder)"]
["Lyngdalcup",null,"De eldste laget som deltar danner en komité",null,"Sportslig utvalg fotball"]
["Oktober","TV-aksjonen","Gutter/jenter 8 år fotball","11 bøssebærer og 1 rodeleder","Daglig leder"]
["November","Ryfylkekort","Daglig leder deler ut antall kort til hver idrett via sportslig leder.","Ett kort per medlem","Daglig leder"]
["Høst","SMIL i Ryfylke/","Gutter 17","Annethvert år","Sportslig utvalg fotball (ungdomsleder)"]
[null,"Yrkesmesse Tau Aktivitetshus",null,"10 voksne og 5 ungdommer"]
[null,null,null,"Rigging, parkeringsvakter, rydding"]
[]
[]
[]
[]
[]
[null,null,"Barnehåndball avdeling "]
{"$rows_empty":20}
[null,null,"DUGNAD MIL (A-LAGSKAMPER)"]
["Dato","Type","Hvem","Kommentar","Ansvar"]
[2023,"Kiosk A-lagskamp","J15 - Fotball","Kiosksalg, koke kaffe","Lagleder J15"]
[null,null,"G2016","Kake/lapperøre etter kioskgjengens behov"]
[null,null,"G2015","Kake/lapperøre etter kioskgjengens behov"]
[null,null,"G2014","Kake/lapperøre etter kioskgjengens behov"]
[null,null,"G2013","Kake/lapperøre etter kioskgjengens behov"]
[null,null,"G2012","Kake/lapperøre etter kioskgjengens behov"]
[null,null,"G2011","Kake/lapperøre etter kioskgjengens behov"]
[null,null,"G2010/2009","Kake/lapperøre etter kioskgjengens behov"]
[null,null,"G-17","Kake/lapperøre etter kioskgjengens behov"]
[null,null,"J2017","Kake/lapperøre etter kioskgjengens behov"]
[null,null,"J2011","Kake/lapperøre etter kioskgjengens behov"]
[null,null,"J2009/2010","Kake/lapperøre etter kioskgjengens behov"]
[null,null,"J2007/2008","Kake/lapperøre etter kioskgjengens behov"]
[null,null,"G2017","Kake/lapperøre etter kioskgjengens behov"]

{"sheet":"Lagoversikt_dugnadsliste","index":3,"n_rows":56,"n_cols":4,"rows_kept":56,"cut":false,"hidden":false,"merged":[]}
["Tabllen nedenfor benyttes som valg til hvem som settes opp som ansvarlige I dugnadsoversikten"]
["Avsjekk hvert år på om alle gruppene og lagene eksisterer, skal noen legges til?/mindre kull som krever justering på ansvarlige for dugnadselementer?"]
[]
[]
["Grønn = bekreftet at eksisterer og skal med på dugnadslista","Sist oppdatert:"]
["Rød = bekreftet at ikke eksisterer og må dermed ut av årets dugnadsliste","2023-12-13"]
[]
[]
["Ansvarlige grupper lag/tilgjngengelig","Kommentar angående lag/gruppe"]
["Alle",null,null,"TYPE"]
["Alle utendørs (fotball)",null,null,"Anleggsdugnad - ute"]
["Alle innendørs (håndball + allidrett)",null,null,"Anleggsdugnad - inne"]
["Håndball (Alle)",null,null,"Strandamila"]
["Allidrett (Alle)",null,null,"17.mai"]
["Friidrett (Alle)",null,null,"Loddsalg"]
["Innebandy (Alle)",null,null,"RT-Cup"]
["Fotball (Alle)",null,null,"Fotballskole"]
["Fotball A-lag herrer",null,null,"Kongeparken cup (Håndball)"]
["Fotball Damelag",null,null,"Danacup"]
["Fotball B-lag herrer",null,null,"Lyngdalcup"]
["Fotball Old Boys",null,null,"TV-aksjonen"]
["Fotball G17",null,null,"Ryfylkekort/Salgsdugnad"]
["Fotball G16/G17",null,null,"SMIL i Ryfylke/Yrkesmesse"]
["Fotball J17",null,null,"Aktivitetsserie"]
["Fotball J16/J17"]
["Fotball J14/15"]
["Fotball G14/J14"]
["Fotball G13/J13/G14/J14"]
["Fotball G11"]
["Fotball G13/J13"]
["Fotball J13/J14/J15"]
["Fotball G14"]
["Fotball G13"]
["Fotball G12"]
["Fotball J11"]
["Fotball G10/G11/J10/J11"]
["Fotball J10"]
["Fotball G10"]
["Fotball G9"]
["Fotball G9/J9"]
["Fotball J8/J9"]
["Fotball G8/J8"]
["Fotball G7/J7"]
["Fotball G6/J6"]
["Fotball alle lag 6-11 år"]
["Håndball mini 6-8år"]
["Håndball G9/J9","aldersklassen referer til alderslaget slik det het per 23/24-sesongen (består av barn f2014/2015)"]
["Håndball G11/J11","aldersklassen referer til alderslaget slik det het per 23/24-sesongen (består av barn f2012/2013)"]
["Det eldste laget som deltar danner en komité"]
["Styret"]
["Daglig leder"]
["Sportslig Utvalg Håndball","Styret ansvarlig for å sikre at komiteen eksisterer"]
["Sportslig Utvalg Fotball","Styret ansvarlig for å sikre at komiteen eksisterer"]
["Barnehåndball avdeling ","Håndball "]
["Strandamilkomiteen","Styret ansvarlig for å sikre at komiteen eksisterer"]
["Barnehåndball avdeling ","Håndball "]

{"sheet":"Antall dugnader sjekk","index":4,"n_rows":40,"n_cols":2,"rows_kept":40,"cut":false,"hidden":false,"merged":[]}
["Antall ganger en gruppe/et lag er listet til å ha dugnadsplikter:"]
[{"$f":"Lagoversikt_dugnadsliste!A10","v":"Alle"},{"$f":"COUNTIF('2024'!E:E,'Antall dugnader sjekk'!A2)","v":1}]
[{"$f":"Lagoversikt_dugnadsliste!A11","v":"Alle utendørs (fotball)"},1]
[{"$f":"Lagoversikt_dugnadsliste!A12","v":"Alle innendørs (håndball + allidrett)"},{"$f":"COUNTIF('2024'!E:E,'Antall dugnader sjekk'!A4)","v":1}]
[{"$f":"Lagoversikt_dugnadsliste!A13","v":"Håndball (Alle)"},{"$f":"COUNTIF('2024'!E:E,'Antall dugnader sjekk'!A5)","v":2}]
[{"$f":"Lagoversikt_dugnadsliste!A14","v":"Allidrett (Alle)"},{"$f":"COUNTIF('2024'!E:E,'Antall dugnader sjekk'!A6)","v":1}]
[{"$f":"Lagoversikt_dugnadsliste!A15","v":"Friidrett (Alle)"},{"$f":"COUNTIF('2024'!E:E,'Antall dugnader sjekk'!A7)","v":1}]
[{"$f":"Lagoversikt_dugnadsliste!A16","v":"Innebandy (Alle)"},{"$f":"COUNTIF('2024'!E:E,'Antall dugnader sjekk'!A8)","v":0}]
[{"$f":"Lagoversikt_dugnadsliste!A17","v":"Fotball (Alle)"},{"$f":"COUNTIF('2024'!E:E,'Antall dugnader sjekk'!A9)","v":1}]
[{"$f":"Lagoversikt_dugnadsliste!A18","v":"Fotball A-lag herrer"},{"$f":"COUNTIF('2024'!E:E,'Antall dugnader sjekk'!A10)","v":2}]
[{"$f":"Lagoversikt_dugnadsliste!A19","v":"Fotball Damelag"},{"$f":"COUNTIF('2024'!E:E,'Antall dugnader sjekk'!A11)","v":0}]
[{"$f":"Lagoversikt_dugnadsliste!A20","v":"Fotball B-lag herrer"},{"$f":"COUNTIF('2024'!E:E,'Antall dugnader sjekk'!A12)","v":2}]
[{"$f":"Lagoversikt_dugnadsliste!A21","v":"Fotball Old Boys"},{"$f":"COUNTIF('2024'!E:E,'Antall dugnader sjekk'!A13)","v":2}]
[{"$f":"Lagoversikt_dugnadsliste!A22","v":"Fotball G17"},{"$f":"COUNTIF('2024'!E:E,'Antall dugnader sjekk'!A14)","v":3}]
[{"$f":"Lagoversikt_dugnadsliste!A24","v":"Fotball J17"},{"$f":"COUNTIF('2024'!E:E,'Antall dugnader sjekk'!A15)","v":1}]
["Fotball J16/J17",{"$f":"COUNTIF('2024'!E:E,'Antall dugnader sjekk'!A16)","v":0}]
[{"$f":"Lagoversikt_dugnadsliste!A28","v":"Fotball G13/J13/G14/J14"},{"$f":"COUNTIF('2024'!E:E,'Antall dugnader sjekk'!A17)","v":0}]
[{"$f":"Lagoversikt_dugnadsliste!A30","v":"Fotball G13/J13"},{"$f":"COUNTIF('2024'!E:E,'Antall dugnader sjekk'!A18)","v":2}]
[{"$f":"Lagoversikt_dugnadsliste!A34","v":"Fotball G12"},{"$f":"COUNTIF('2024'!E:E,'Antall dugnader sjekk'!A19)","v":0}]
[{"$f":"Lagoversikt_dugnadsliste!A36","v":"Fotball G10/G11/J10/J11"},0]
[{"$f":"Lagoversikt_dugnadsliste!A40","v":"Fotball G9/J9"},{"$f":"COUNTIF('2024'!E:E,'Antall dugnader sjekk'!A21)","v":3}]
[{"$f":"Lagoversikt_dugnadsliste!A42","v":"Fotball G8/J8"},3]
[{"$f":"Lagoversikt_dugnadsliste!A43","v":"Fotball G7/J7"},3]
[{"$f":"Lagoversikt_dugnadsliste!A45","v":"Fotball alle lag 6-11 år"},{"$f":"COUNTIF('2024'!E:E,'Antall dugnader sjekk'!A24)","v":1}]
[{"$f":"Lagoversikt_dugnadsliste!A46","v":"Håndball mini 6-8år"},0]
[{"$f":"Lagoversikt_dugnadsliste!A47","v":"Håndball G9/J9"},{"$f":"COUNTIF('2024'!E:E,'Antall dugnader sjekk'!A26)","v":0}]
[{"$f":"Lagoversikt_dugnadsliste!A48","v":"Håndball G11/J11"},{"$f":"COUNTIF('2024'!E:E,'Antall dugnader sjekk'!A27)","v":0}]
[{"$f":"Lagoversikt_dugnadsliste!A49","v":"Det eldste laget som deltar danner en komité"},{"$f":"COUNTIF('2024'!E:E,'Antall dugnader sjekk'!A28)","v":1}]
[{"$f":"Lagoversikt_dugnadsliste!A50","v":"Styret"},{"$f":"COUNTIF('2024'!E:E,'Antall dugnader sjekk'!A29)","v":0}]
[{"$f":"Lagoversikt_dugnadsliste!A51","v":"Daglig leder"},3]
[{"$f":"Lagoversikt_dugnadsliste!A52","v":"Sportslig Utvalg Håndball"},{"$f":"COUNTIF('2024'!E:E,'Antall dugnader sjekk'!A31)","v":1}]
[{"$f":"Lagoversikt_dugnadsliste!A53","v":"Sportslig Utvalg Fotball"},{"$f":"COUNTIF('2024'!E:E,'Antall dugnader sjekk'!A32)","v":1}]
[{"$f":"Lagoversikt_dugnadsliste!A55","v":"Strandamilkomiteen"},{"$f":"COUNTIF('2024'!E:E,'Antall dugnader sjekk'!A33)","v":1}]
[{"$f":"Lagoversikt_dugnadsliste!A56","v":"Barnehåndball avdeling "},{"$f":"COUNTIF('2024'!E:E,'Antall dugnader sjekk'!A34)","v":0}]
[{"$f":"Lagoversikt_dugnadsliste!A57","v":0},{"$f":"COUNTIF('2024'!E:E,'Antall dugnader sjekk'!A35)","v":0}]
[{"$f":"Lagoversikt_dugnadsliste!A58","v":0},{"$f":"COUNTIF('2024'!E:E,'Antall dugnader sjekk'!A36)","v":0}]
[{"$f":"Lagoversikt_dugnadsliste!A59","v":0},{"$f":"COUNTIF('2024'!E:E,'Antall dugnader sjekk'!A37)","v":0}]
[{"$f":"Lagoversikt_dugnadsliste!A60","v":0},{"$f":"COUNTIF('2024'!E:E,'Antall dugnader sjekk'!A38)","v":0}]
[{"$f":"Lagoversikt_dugnadsliste!A61","v":0},{"$f":"COUNTIF('2024'!E:E,'Antall dugnader sjekk'!A39)","v":0}]
[{"$f":"Lagoversikt_dugnadsliste!A62","v":0},{"$f":"COUNTIF('2024'!E:E,'Antall dugnader sjekk'!A40)","v":0}]

{"sheet":"Ark2","index":5,"n_rows":13,"n_cols":7,"rows_kept":13,"cut":false,"hidden":false,"merged":[]}
["Lagnavn","2025","2026","2027","2028","2029","2030"]
["G/J 6","G/J 2019","G/J 2020","G/J 2021","G/J 2022","G/J 2023","G/J 2024"]
["G/J 7","G/J 2018","G/J 2019","G/J 2020","G/J 2021","G/J 2022","G/J 2023"]
["G/J 8","G/J 2017","G/J 2018","G/J 2019","G/J 2020","G/J 2021","G/J 2022"]
["G/J 9","G/J 2016","G/J 2017","G/J 2018","G/J 2019","G/J 2020","G/J 2021"]
["G/J 10","G/J 2015","G/J 2016","G/J 2017","G/J 2018","G/J 2019","G/J 2020"]
["G/J 11","G/J 2014","G/J 2015","G/J 2016","G/J 2017","G/J 2018","G/J 2019"]
["G/J 12","G/J 2013","G/J 2014","G/J 2015","G/J 2016","G/J 2017","G/J 2018"]
["G/J 13","G/J 2012","G/J 2013","G/J 2014","G/J 2015","G/J 2016","G/J 2017"]
["G/J 14","G/J 2011","G/J 2012","G/J 2013","G/J 2014","G/J 2015","G/J 2016"]
["G/J 15","G/J 2010","G/J 2011","G/J 2012","G/J 2013","G/J 2014","G/J 2015"]
["G/J 16","G/J 2009","G/J 2010","G/J 2011","G/J 2012","G/J 2013","G/J 2014"]
["G/J 17","G/J 2008","G/J 2009","G/J 2010","G/J 2011","G/J 2012","G/J 2013"]